bitfinex/quotes_BTCUSD_20241013
["timestamp","ask_amount","ask_price","bid_price","bid_amount"]
[1728823733895,0.00138915,62808.0,62807.0,0.90305055]
[1728823734160,0.00138915,62808.0,62807.0,0.80788616]
[1728823734387,0.00138915,62808.0,62807.0,0.90305142]
[1728823734567,0.00138915,62808.0,62807.0,0.90269752]
[1728823736160,0.00138915,62808.0,62807.0,0.80753]
[1728823736578,0.00138915,62808.0,62807.0,0.90267989]
[1728823737615,0.00138915,62808.0,62807.0,0.63187901]
[1728823737829,0.00138915,62808.0,62807.0,0.90262988]
[1728823739041,0.00138915,62808.0,62807.0,0.80748613]
[1728823739889,0.00138915,62808.0,62807.0,0.90262988]
[1728823741994,0.00138915,62808.0,62807.0,0.80748613]
[1728823742468,0.00138915,62808.0,62807.0,0.90262988]
[1728823742877,0.00138915,62808.0,62807.0,0.80748613]
[1728823743506,0.00138915,62808.0,62807.0,0.90262988]
[1728823743910,0.00138915,62808.0,62807.0,0.87884457]
[1728823744113,0.00138915,62808.0,62807.0,0.45407901]
[1728823744314,0.00138915,62808.0,62807.0,0.50166097]
[1728823744533,0.00138915,62808.0,62807.0,0.52543745]
[1728823744733,0.00138915,62808.0,62807.0,0.70108481]
[1728823744949,0.00138915,62808.0,62807.0,0.45407901]
[1728823745916,0.00138915,62808.0,62807.0,0.70109832]
[1728823746119,0.00138915,62808.0,62807.0,0.62973988]
[1728823747334,0.00138915,62808.0,62807.0,0.80373988]
[1728823747500,0.00138915,62808.0,62807.0,0.92266957]
[1728823747855,0.00138915,62808.0,62807.0,0.80373988]
[1728823748613,0.00138915,62808.0,62807.0,0.79873988]
[1728823748879,0.00138915,62808.0,62807.0,0.80373988]
[1728823750662,0.00138915,62808.0,62807.0,0.85335849]
[1728823752149,0.00138915,62808.0,62807.0,0.85535849]
[1728823753089,0.00138915,62808.0,62807.0,0.85335849]
[1728823753297,0.00138915,62808.0,62807.0,0.85535849]
[1728823754084,0.00138915,62808.0,62807.0,0.85335849]
[1728823754292,0.00138915,62808.0,62807.0,0.97234231]
[1728823754629,0.00138915,62808.0,62807.0,0.85335849]
[1728823754823,0.00138915,62808.0,62807.0,0.85535849]
[1728823755435,0.00138915,62808.0,62807.0,0.85335849]
[1728823756366,0.00138915,62808.0,62807.0,0.85535849]
[1728823758047,0.00138915,62808.0,62807.0,0.85544016]
[1728823762110,0.00138915,62808.0,62807.0,0.85044016]
[1728823762603,0.00138915,62808.0,62807.0,0.99326584]
[1728823762812,0.00138915,62808.0,62807.0,0.99353787]
[1728823763621,0.00138915,62808.0,62807.0,0.85059023]
[1728823767497,0.00138915,62808.0,62807.0,0.67469762]
[1728823767735,0.00138915,62808.0,62807.0,0.85069005]
[1728823769903,0.00138915,62808.0,62807.0,0.67969005]
[1728823770707,0.00138915,62808.0,62807.0,0.82273755]
[1728823771925,0.09908915,62808.0,62807.0,0.60707144]
[1728823772128,0.09908915,62808.0,62807.0,0.72637839]
[1728823772503,0.17448915,62808.0,62807.0,0.70251965]
[1728823773347,0.00138915,62808.0,62807.0,0.72551965]
[1728823773550,0.00138915,62808.0,62807.0,0.63214079]
[1728823774492,0.00138915,62808.0,62807.0,0.6817874]
[1728823774912,0.00138915,62808.0,62807.0,0.63214079]
[1728823776143,0.00138915,62808.0,62807.0,0.86018489]
[1728823776507,0.00138915,62808.0,62807.0,0.89412489]
[1728823776861,0.00138915,62808.0,62807.0,0.89394979]
[1728823777471,0.00038915,62808.0,62807.0,0.88894979]
[1728823777685,0.00038915,62808.0,62807.0,0.88494979]
[1728823778040,0.00138915,62808.0,62807.0,0.89394979]
[1728823779569,0.00238915,62808.0,62807.0,0.90294979]
[1728823781093,0.00238915,62808.0,62807.0,0.72754979]
[1728823781518,0.00238915,62808.0,62807.0,0.72754214]
[1728823786061,0.00238915,62808.0,62807.0,0.72554214]
[1728823786577,0.00238915,62808.0,62807.0,0.7275358]
[1728823786792,0.00238915,62808.0,62807.0,0.7255358]
[1728823787037,0.00238915,62808.0,62807.0,0.7275358]
[1728823787282,0.00238915,62808.0,62807.0,0.7255358]
[1728823787484,0.00238915,62808.0,62807.0,0.7275358]
[1728823788245,0.00238915,62808.0,62807.0,0.7255358]
[1728823788730,0.00238915,62808.0,62807.0,0.7275358]
[1728823789728,0.00238915,62808.0,62807.0,0.74459242]
[1728823790436,0.00238915,62808.0,62807.0,0.74659242]
[1728823790706,0.00238915,62808.0,62807.0,0.74459242]
[1728823792653,0.00238915,62808.0,62807.0,0.74659242]
[1728823792862,0.00238915,62808.0,62807.0,0.74459242]
[1728823794372,0.00238915,62808.0,62807.0,0.7255358]
[1728823794801,0.00238915,62808.0,62807.0,0.74459149]
[1728823796106,0.00238915,62808.0,62807.0,0.74659149]
[1728823797012,0.00238915,62808.0,62807.0,0.74459149]
[1728823797667,0.00138915,62808.0,62807.0,0.73759149]
[1728823797896,0.00138915,62808.0,62807.0,0.73760794]
[1728823798109,0.00238915,62808.0,62807.0,0.74760794]
[1728823798518,0.00238915,62808.0,62807.0,0.72855225]
[1728823798728,0.00238915,62808.0,62807.0,0.74760839]
[1728823798913,0.00138915,62808.0,62807.0,0.73860839]
[1728823799615,0.00038915,62808.0,62807.0,0.73660839]
[1728823799934,0.00038915,62808.0,62807.0,0.73960839]
[1728823800166,0.00038915,62808.0,62807.0,0.73760839]
[1728823800384,0.00038915,62808.0,62807.0,0.74760839]
[1728823800512,0.00038915,62808.0,62807.0,0.74960839]
[1728823800719,0.00038915,62808.0,62807.0,0.7496058]
[1728823803519,0.00038915,62808.0,62807.0,0.7476058]
[1728823804244,0.00038915,62808.0,62807.0,0.88555321]
[1728823804502,0.00038915,62808.0,62807.0,0.67390556]
[1728823804747,0.00038915,62808.0,62807.0,0.6929788]
[1728823808429,0.00038915,62808.0,62807.0,0.74262988]
[1728823810089,0.00038915,62808.0,62807.0,0.69297483]
[1728823810334,0.00038915,62808.0,62807.0,0.74262821]
[1728823811286,0.00038915,62808.0,62807.0,0.69297483]
[1728823811717,0.00038915,62808.0,62807.0,0.74262485]
[1728823812879,0.00038915,62808.0,62807.0,0.69297483]
[1728823813113,0.00038915,62808.0,62807.0,0.74262374]
[1728823813563,0.00038915,62808.0,62807.0,0.74261777]
[1728823814681,0.00038915,62808.0,62807.0,0.69296886]
[1728823815295,0.00038915,62808.0,62807.0,0.74261806]
[1728823815927,0.00038915,62808.0,62807.0,0.6929653]
[1728823816147,0.00038915,62808.0,62807.0,0.74261506]
[1728823817657,0.00038915,62808.0,62807.0,0.6929653]
[1728823817999,1.00038915,62808.0,62807.0,0.6929653]
[1728823818207,1.00998149,62808.0,62807.0,0.69297279]
[1728823819041,1.00998149,62808.0,62807.0,0.67390708]
[1728823819264,1.00998149,62808.0,62807.0,0.69297323]
[1728823822802,1.00998149,62808.0,62807.0,0.69297334]
[1728823823224,1.00998149,62808.0,62807.0,0.69301661]
[1728823823956,1.00998149,62808.0,62807.0,0.74266549]
[1728823826463,1.00998149,62808.0,62807.0,0.7426681]
[1728823827146,1.00998149,62808.0,62807.0,0.7216681]
[1728823827375,1.00998149,62808.0,62807.0,0.7326681]
[1728823828021,1.00998149,62808.0,62807.0,0.7436681]
[1728823828235,1.00998149,62808.0,62807.0,0.7326681]
[1728823828662,1.00998149,62808.0,62807.0,0.7466681]
[1728823829316,1.00998149,62808.0,62807.0,0.7356681]
[1728823831534,1.00998149,62808.0,62807.0,0.74967162]
[1728823833459,1.00998149,62808.0,62807.0,0.73059923]
[1728823833686,1.00998149,62808.0,62807.0,0.74968241]
[1728823833894,1.00998149,62808.0,62807.0,0.74968246]
[1728823837627,1.00998149,62808.0,62807.0,0.74975334]
[1728823838336,0.00998149,62808.0,62807.0,0.74975331]
[1728823838817,0.00038915,62808.0,62807.0,0.74975331]
[1728823839309,0.00038915,62808.0,62807.0,0.76168028]
[1728823842381,0.00038915,62808.0,62807.0,0.76170084]
[1728823842617,0.00038915,62808.0,62807.0,0.7617002]
[1728823843829,0.00038915,62808.0,62807.0,0.7687002]
[1728823846965,0.00038915,62808.0,62807.0,0.76867044]
[1728823852927,0.00038915,62808.0,62807.0,0.76667044]
[1728823853615,0.00038915,62808.0,62807.0,0.90969084]
[1728823853910,0.00038915,62808.0,62807.0,0.73867044]
[1728823854176,0.09648915,62808.0,62807.0,0.68902156]
[1728823855420,0.09648915,62808.0,62807.0,0.71202156]
[1728823856181,0.17928915,62808.0,62807.0,0.56993877]
[1728823856437,0.17928915,62808.0,62807.0,0.40586742]
[1728823856676,0.17928915,62808.0,62807.0,0.41301535]
[1728823857177,0.17928915,62808.0,62807.0,0.39901535]
[1728823857396,0.17928915,62808.0,62807.0,0.52201535]
[1728823857604,0.17928915,62808.0,62807.0,0.52701535]
[1728823858019,0.17928915,62808.0,62807.0,0.50801535]
[1728823858242,0.17928915,62808.0,62807.0,0.48894068]
[1728823858450,0.17928915,62808.0,62807.0,0.49494068]
[1728823858665,0.17928915,62808.0,62807.0,0.49094068]
[1728823859087,0.17928915,62808.0,62807.0,0.51101535]
[1728823859301,0.17928915,62808.0,62807.0,0.49194068]
[1728823859537,0.17928915,62808.0,62807.0,0.46000068]
[1728823860007,0.17928915,62808.0,62807.0,0.47905157]
[1728823860218,0.17928915,62808.0,62807.0,0.45799153]
[1728823860436,0.17928915,62808.0,62807.0,0.45754098]
[1728823860640,0.17928915,62808.0,62807.0,0.45854098]
[1728823861312,0.17928915,62808.0,62807.0,0.45754098]
[1728823862607,0.17928915,62808.0,62807.0,0.44562846]
[1728823863010,0.17928915,62808.0,62807.0,0.45753582]
[1728823863727,0.17928915,62808.0,62807.0,0.01409481]
[1728823863951,0.18723606,62808.0,62807.0,0.17331181]
[1728823864157,0.18723606,62808.0,62807.0,0.27331181]
[1728823865132,0.18723606,62808.0,62807.0,0.26140445]
[1728823865337,0.18723606,62808.0,62807.0,0.00218745]
[1728823865542,0.18723606,62808.0,62807.0,0.10218745]
[1728823866927,0.18723606,62808.0,62807.0,0.00218745]
[1728823868026,0.34645106,62808.0,62807.0,0.00218745]
[1728823868899,0.34645106,62808.0,62807.0,0.00118745]
[1728823869743,0.34745106,62808.0,62807.0,0.00118745]
[1728823869953,0.34645106,62808.0,62807.0,0.00118745]
[1728823871265,0.34745106,62808.0,62807.0,0.00218745]
[1728823871487,0.35045106,62808.0,62807.0,0.00318745]
[1728823871698,0.35045106,62808.0,62807.0,0.00218745]
[1728823871901,0.34645106,62808.0,62807.0,0.00118745]
[1728823872121,0.34945106,62808.0,62807.0,0.00218745]
[1728823872334,0.34745106,62808.0,62807.0,0.00218745]
[1728823872758,0.0914,62807.0,62804.0,0.159223]
[1728823872970,0.0914,62807.0,62802.0,0.1]
[1728823873167,0.75335106,62808.0,62805.0,0.159222]
[1728823873168,0.09925968,62806.0,62805.0,0.159222]
[1728823873388,0.0784,62805.0,62804.0,0.159224]
[1728823873635,0.1698,62805.0,62804.0,0.159224]
[1728823873866,0.1698,62805.0,62804.0,0.159225]
[1728823874121,0.17766026,62805.0,62804.0,0.159225]
[1728823875742,0.18366026,62805.0,62804.0,0.159225]
[1728823877682,0.17966026,62805.0,62804.0,0.159225]
[1728823877929,0.17766026,62805.0,62804.0,0.159225]
[1728823878174,0.18166026,62805.0,62804.0,0.159225]
[1728823878417,0.18366026,62805.0,62804.0,0.159225]
[1728823878644,0.18766026,62805.0,62804.0,0.159225]
[1728823878844,0.18566026,62805.0,62804.0,0.159225]
[1728823879301,0.18766026,62805.0,62804.0,0.159225]
[1728823883752,0.18766026,62805.0,62803.0,0.159226]
[1728823883951,0.18766026,62805.0,62802.0,0.259229]
[1728823883952,0.25548326,62805.0,62802.0,0.259229]
[1728823884157,0.0914,62804.0,62803.0,0.159228]
[1728823884374,0.0914,62804.0,62803.0,0.259228]
[1728823884578,0.09918008,62804.0,62803.0,0.259228]
[1728823886018,0.10118008,62804.0,62803.0,0.259228]
[1728823886428,0.10418008,62804.0,62803.0,0.259228]
[1728823892004,0.09995441,62804.0,62803.0,0.259228]
[1728823892479,0.01278008,62804.0,62803.0,0.43236996]
[1728823893320,0.01278008,62804.0,62803.0,0.45536996]
[1728823893531,0.005,62804.0,62803.0,0.52325201]
[1728823893743,0.005,62804.0,62803.0,0.53517238]
[1728823893970,0.005,62804.0,62803.0,0.52325201]
[1728823894188,0.005,62804.0,62803.0,0.54231858]
[1728823894689,0.00038915,62808.0,62804.0,0.123]
[1728823894908,0.00038915,62808.0,62807.0,0.282217]
[1728823895111,0.00038915,62808.0,62807.0,0.44344101]
[1728823895528,0.00038915,62808.0,62807.0,0.61714101]
[1728823896168,0.00138915,62808.0,62807.0,0.61714101]
[1728823896585,0.00138915,62808.0,62807.0,0.66097762]
[1728823897000,0.00138915,62808.0,62807.0,0.64906101]
[1728823897180,0.00138915,62808.0,62807.0,0.6609672]
[1728823897617,0.00038915,62808.0,62807.0,0.67285889]
[1728823898048,0.00038915,62808.0,62807.0,0.67685889]
[1728823899997,0.00038915,62808.0,62807.0,0.68185889]
[1728823900835,0.00038915,62808.0,62807.0,0.50815889]
[1728823901043,0.00038915,62808.0,62807.0,0.48515889]
[1728823901457,0.00818396,62808.0,62807.0,0.48515889]
[1728823901873,0.00818396,62808.0,62807.0,0.45323889]
[1728823902519,0.00818396,62808.0,62807.0,0.4413327]
[1728823902755,0.00818396,62808.0,62807.0,0.4363327]
[1728823903611,0.00818396,62808.0,62807.0,0.4403327]
[1728823903836,0.00818396,62808.0,62807.0,0.4363327]
[1728823904363,0.00818396,62808.0,62807.0,0.4393327]
[1728823904616,0.00818396,62808.0,62807.0,0.4363327]
[1728823905368,0.00918396,62808.0,62807.0,0.4323327]
[1728823905840,0.00918396,62808.0,62807.0,0.4442364]
[1728823906506,0.00918396,62808.0,62807.0,0.4323327]
[1728823907134,0.00918396,62808.0,62807.0,0.42044101]
[1728823907570,0.5,62807.0,62806.0,0.1]
[1728823907795,0.5,62807.0,62805.0,0.1]
[1728823908027,0.50781566,62807.0,62805.0,0.1]
[1728823908539,0.50781566,62807.0,62805.0,0.259221]
[1728823908985,0.50781566,62807.0,62806.0,0.001]
[1728823909624,0.50781566,62807.0,62805.0,0.1]
[1728823910059,0.50781566,62807.0,62805.0,0.101]
[1728823910482,0.50781566,62807.0,62806.0,0.15922]
[1728823910692,0.50781566,62807.0,62805.0,0.001]
[1728823910898,0.50781566,62807.0,62805.0,0.159222]
[1728823911152,0.51181566,62807.0,62805.0,0.159222]
[1728823911404,0.50781566,62807.0,62804.0,0.001638]
[1728823911642,0.50781566,62807.0,62804.0,0.101638]
[1728823911874,0.51181566,62807.0,62804.0,0.101638]
[1728823912115,0.50781566,62807.0,62804.0,0.260863]
[1728823912566,0.50981566,62807.0,62805.0,0.159222]
[1728823913043,0.50981566,62807.0,62804.0,0.260863]
[1728823913246,0.50781566,62807.0,62804.0,0.260863]
[1728823913498,0.51181566,62807.0,62804.0,0.260863]
[1728823913712,0.51381566,62807.0,62804.0,0.260863]
[1728823914252,0.50981566,62807.0,62804.0,0.260863]
[1728823914712,0.51381566,62807.0,62804.0,0.260863]
[1728823915252,0.51381566,62807.0,62805.0,0.159222]
[1728823915509,0.51381566,62807.0,62806.0,0.15922]
[1728823915745,0.01381566,62807.0,62806.0,0.44344401]
[1728823916184,0.004,62807.0,62806.0,0.44344401]
[1728823916595,0.00038915,62808.0,62807.0,0.282217]
[1728823916854,0.00038915,62808.0,62807.0,0.44344101]
[1728823918138,0.00138915,62808.0,62807.0,0.44344101]
[1728823920928,0.18118915,62808.0,62807.0,0.44344101]
[1728823921325,0.18896282,62808.0,62807.0,0.44344101]
[1728823922864,0.68896282,62808.0,62804.0,0.001638]
[1728823923083,0.15922,62806.0,62804.0,0.001638]
[1728823923293,0.16699263,62807.0,62804.0,0.001638]
[1728823923496,0.00777363,62807.0,62804.0,0.001638]
[1728823923701,0.00777388,62805.0,62804.0,0.001638]
[1728823923908,0.159219,62807.0,62804.0,0.001638]
[1728823924126,0.00777392,62806.0,62804.0,0.001638]
[1728823924338,0.0077743,62805.0,62804.0,0.001638]
[1728823924796,0.50138915,62808.0,62807.0,0.159217]
[1728823925904,0.50038915,62808.0,62807.0,0.159217]
[1728823927351,0.50238915,62808.0,62807.0,0.159217]
[1728823927556,0.50538915,62808.0,62807.0,0.159217]
[1728823932980,0.50038915,62808.0,62807.0,0.159217]
[1728823933180,0.50138915,62808.0,62807.0,0.159217]
[1728823933395,0.50338915,62808.0,62807.0,0.17114107]
[1728823933813,0.50138915,62808.0,62807.0,0.17114107]
[1728823934091,0.50138915,62808.0,62807.0,0.33236508]
[1728823935962,0.50138915,62808.0,62807.0,0.32044101]
[1728823936193,0.50138915,62808.0,62807.0,0.16122401]
[1728823936194,0.59928915,62808.0,62807.0,0.16122401]
[1728823936838,0.15922,62807.0,62804.0,0.001638]
[1728823937059,0.24052,62806.0,62804.0,0.001638]
[1728823937267,0.24052,62806.0,62804.0,0.101638]
[1728823937268,0.08907115,62806.0,62804.0,0.101638]
[1728823937475,0.159222,62805.0,62804.0,0.101638]
[1728823937685,0.08907115,62806.0,62804.0,0.101638]
[1728823937891,0.00777157,62805.0,62804.0,0.101638]
[1728823938098,0.00777157,62805.0,62804.0,0.102638]
[1728823938322,0.00777157,62805.0,62804.0,0.002638]
[1728823938323,0.16699357,62805.0,62804.0,0.002638]
[1728823939376,0.16699357,62805.0,62804.0,0.003638]
[1728823939614,0.00777157,62805.0,62804.0,0.002638]
[1728823939824,0.16699357,62805.0,62804.0,0.002638]
[1728823940030,0.16699357,62805.0,62804.0,0.006638]
[1728823940838,0.00777157,62805.0,62804.0,0.001638]
[1728823941067,0.16699357,62805.0,62804.0,0.002638]
[1728823943916,0.00777157,62805.0,62804.0,0.002638]
[1728823945348,0.16699357,62805.0,62804.0,0.002638]
[1728823946308,0.26489357,62805.0,62804.0,0.002638]
[1728823947486,0.10567157,62805.0,62804.0,0.002638]
[1728823948241,0.10567157,62805.0,62804.0,0.001638]
[1728823948477,0.10767157,62805.0,62804.0,0.001638]
[1728823949459,0.11067157,62805.0,62804.0,0.001638]
[1728823951652,0.26989357,62805.0,62804.0,0.001638]
[1728823958480,0.27071257,62805.0,62804.0,0.001638]
[1728823971462,0.26871257,62805.0,62804.0,0.001638]
[1728823971898,0.26771257,62805.0,62804.0,0.001638]
[1728823972111,0.27371257,62805.0,62804.0,0.001638]
[1728823972555,0.27171257,62805.0,62804.0,0.001638]
[1728823972770,0.27371257,62805.0,62804.0,0.002638]
[1728823972999,0.27371257,62805.0,62804.0,0.003638]
[1728823973000,0.28071257,62805.0,62804.0,0.003638]
[1728823975731,0.36461257,62805.0,62804.0,0.003638]
[1728823975952,0.43628702,62805.0,62804.0,0.003638]
[1728823976164,0.54034002,62805.0,62804.0,0.003638]
[1728823976374,0.36461257,62805.0,62804.0,0.003638]
[1728823977031,0.542331,62805.0,62804.0,0.003638]
[1728823977240,0.54029278,62805.0,62804.0,0.003638]
[1728823977459,0.54229278,62805.0,62804.0,0.003638]
[1728823980021,0.70351679,62805.0,62804.0,0.003638]
[1728823981168,0.70151679,62805.0,62804.0,0.002638]
[1728823981400,0.68851679,62805.0,62804.0,0.001638]
[1728823981599,0.69251679,62805.0,62804.0,0.002638]
[1728823981873,0.70351679,62805.0,62804.0,0.003638]
[1728823982105,0.69951679,62805.0,62804.0,0.002638]
[1728823982351,0.71351679,62805.0,62804.0,0.003638]
[1728823982584,0.8788865,62805.0,62804.0,0.004638]
[1728823983846,0.90382631,62805.0,62804.0,0.004638]
[1728823984762,0.90699845,62805.0,62804.0,0.004638]
[1728823986306,1.05018296,62805.0,62804.0,0.004638]
[1728823986570,0.90699845,62805.0,62804.0,0.004638]
[1728823987451,1.05015626,62805.0,62804.0,0.004638]
[1728823987662,0.90699845,62805.0,62804.0,0.004638]
[1728823988550,1.05013194,62805.0,62804.0,0.004638]
[1728823989472,1.02519213,62805.0,62804.0,0.004638]
[1728823989691,0.70637843,62805.0,62804.0,0.004638]
[1728823989906,1.02490595,62805.0,62804.0,0.004638]
[1728823991200,0.88179632,62805.0,62804.0,0.004638]
[1728823993598,0.90673699,62805.0,62804.0,0.004638]
[1728823994470,0.90682359,62805.0,62804.0,0.004638]
[1728823999262,0.88179713,62805.0,62804.0,0.004638]
[1728824002377,0.90673757,62805.0,62804.0,0.004638]
[1728824003943,0.90681588,62805.0,62804.0,0.004638]
[1728824005241,1.24544617,62805.0,62804.0,0.004638]
[1728824005453,1.36463341,62805.0,62804.0,0.004638]
[1728824005665,1.24544617,62805.0,62804.0,0.004638]
[1728824006102,1.16654617,62805.0,62804.0,0.004638]
[1728824006323,0.66399977,62805.0,62804.0,0.004638]
[1728824006535,1.16399977,62805.0,62804.0,0.004638]
[1728824007622,1.16199977,62805.0,62804.0,0.004638]
[1728824008049,1.16399977,62805.0,62804.0,0.004638]
[1728824008257,1.06864617,62805.0,62804.0,0.004638]
[1728824008464,0.89314916,62805.0,62804.0,0.004638]
[1728824008680,1.06896321,62805.0,62804.0,0.004638]
[1728824009319,1.18817921,62805.0,62804.0,0.004638]
[1728824009542,1.06896321,62805.0,62804.0,0.004638]
[1728824010694,1.16316321,62805.0,62804.0,0.004638]
[1728824010913,1.24516321,62805.0,62804.0,0.004638]
[1728824011790,1.31918514,62805.0,62804.0,0.004638]
[1728824012008,1.37362355,62805.0,62804.0,0.004638]
[1728824012427,1.44868311,62805.0,62804.0,0.004638]
[1728824012652,1.59174232,62805.0,62804.0,0.004638]
[1728824013086,1.59154504,62805.0,62804.0,0.004638]
[1728824013305,1.63955905,62805.0,62804.0,0.004638]
[1728824013761,1.39398202,62805.0,62804.0,0.004638]
[1728824016102,1.63955905,62805.0,62804.0,0.004638]
[1728824016523,1.39398202,62805.0,62804.0,0.004638]
[1728824017867,1.39384462,62805.0,62804.0,0.004638]
[1728824019583,1.55497919,62805.0,62804.0,0.004638]
[1728824020287,1.39384462,62805.0,62804.0,0.004638]
[1728824022664,1.39401634,62805.0,62804.0,0.004638]
[1728824023852,1.41895764,62805.0,62804.0,0.004638]
[1728824025003,1.41895764,62805.0,62804.0,0.004638]
[1728824029489,1.39401634,62805.0,62804.0,0.004638]
[1728824033635,1.41895763,62805.0,62804.0,0.004638]
[1728824035849,1.91895763,62805.0,62804.0,0.004638]
[1728824036048,2.1647776,62805.0,62804.0,0.004638]
[1728824036851,2.16483073,62805.0,62804.0,0.004638]
[1728824037057,2.16483073,62805.0,62791.0,0.001638]
[1728824037058,0.666255,62792.0,62791.0,0.001638]
[1728824037267,1.00308684,62792.0,62791.0,0.001638]
[1728824037458,1.01389071,62792.0,62791.0,0.001638]
[1728824038568,0.84028288,62792.0,62791.0,0.001638]
[1728824038773,1.01594026,62792.0,62791.0,0.001638]
[1728824038893,1.01694026,62792.0,62791.0,0.001638]
[1728824039118,1.51694026,62792.0,62791.0,0.001638]
[1728824039571,1.01694026,62792.0,62791.0,0.001638]
[1728824040752,0.84128288,62792.0,62791.0,0.001638]
[1728824040984,1.01688095,62792.0,62791.0,0.001638]
[1728824043984,1.01388095,62792.0,62791.0,0.001638]
[1728824044210,1.01188095,62792.0,62791.0,0.001638]
[1728824044425,1.02188095,62792.0,62791.0,0.002638]
[1728824044862,1.02184436,62792.0,62791.0,0.002638]
[1728824045092,1.03584436,62792.0,62791.0,0.003638]
[1728824045742,1.04384436,62792.0,62791.0,0.004638]
[1728824046465,1.03584436,62792.0,62791.0,0.003638]
[1728824046928,1.04884436,62792.0,62791.0,0.004638]
[1728824047156,1.04884436,62792.0,62791.0,0.086038]
[1728824047375,1.04884436,62792.0,62791.0,0.182538]
[1728824049661,1.04896901,62792.0,62791.0,0.182538]
[1728824053769,0.387745,62792.0,62791.0,0.182538]
[1728824053989,0.887745,62792.0,62791.0,0.182538]
[1728824054471,0.8878218,62792.0,62791.0,0.182538]
[1728824056312,0.8878218,62792.0,62791.0,0.181538]
[1728824056313,0.8748218,62792.0,62791.0,0.181538]
[1728824056732,0.8878218,62792.0,62791.0,0.182538]
[1728824057363,0.8508218,62792.0,62791.0,0.180538]
[1728824057585,0.8648218,62792.0,62791.0,0.180538]
[1728824057808,0.8768218,62792.0,62791.0,0.181538]
[1728824058231,0.8898218,62792.0,62791.0,0.182538]
[1728824058858,0.89013682,62792.0,62791.0,0.182538]
[1728824061016,0.72588182,62792.0,62791.0,0.182538]
[1728824061268,0.82159757,62792.0,62791.0,0.341796]
[1728824061496,0.54980387,62792.0,62791.0,0.341796]
[1728824061908,0.54980387,62792.0,62791.0,0.182538]
[1728824062150,0.52280387,62792.0,62791.0,0.339796]
[1728824062353,0.53580387,62792.0,62791.0,0.181538]
[1728824062780,0.53580387,62792.0,62791.0,0.339796]
[1728824062781,0.52380387,62792.0,62791.0,0.339796]
[1728824063197,0.53480387,62792.0,62791.0,0.340796]
[1728824063461,0.53480387,62792.0,62791.0,0.181538]
[1728824063664,0.53480387,62792.0,62791.0,0.340796]
[1728824063896,0.53480387,62792.0,62791.0,0.180538]
[1728824063897,0.52380387,62792.0,62791.0,0.180538]
[1728824064156,0.51080387,62792.0,62791.0,0.179538]
[1728824064366,0.51280387,62792.0,62791.0,0.19153096]
[1728824064788,0.51480387,62792.0,62791.0,0.19153096]
[1728824067915,0.01480387,62792.0,62791.0,0.51201297]
[1728824068375,0.004,62792.0,62791.0,0.51201297]
[1728824068661,0.01482217,62792.0,62791.0,0.51201297]
[1728824068883,0.002,62792.0,62791.0,0.51201297]
[1728824069340,0.01282217,62792.0,62791.0,0.51301297]
[1728824069550,0.23878316,62798.0,62794.0,0.1698]
[1728824069768,0.159243,62797.0,62795.0,0.1698]
[1728824069972,0.159243,62797.0,62796.0,0.0903]
[1728824071483,0.163243,62797.0,62796.0,0.0903]
[1728824072358,0.17406517,62797.0,62796.0,0.0903]
[1728824073001,0.17806517,62797.0,62796.0,0.0903]
[1728824074722,0.01882217,62797.0,62796.0,0.0903]
[1728824075006,0.17806517,62797.0,62796.0,0.0903]
[1728824075433,0.01882217,62797.0,62796.0,0.0903]
[1728824075642,0.17806517,62797.0,62796.0,0.0903]
[1728824077759,0.01882217,62797.0,62796.0,0.0903]
[1728824077972,0.17806517,62797.0,62796.0,0.0903]
[1728824078905,0.01882217,62797.0,62796.0,0.0903]
[1728824079123,0.17806517,62797.0,62796.0,0.0903]
[1728824082142,0.159249,62795.0,62791.0,0.43311197]
[1728824082367,0.159249,62795.0,62791.0,0.100638]
[1728824082368,0.159255,62792.0,62791.0,0.100638]
[1728824082585,0.159255,62792.0,62791.0,0.001638]
[1728824082809,0.17019874,62792.0,62791.0,0.001638]
[1728824083436,0.17320371,62792.0,62791.0,0.001638]
[1728824083644,0.17320371,62792.0,62791.0,0.002638]
[1728824083859,0.1649041,62792.0,62791.0,0.002638]
[1728824087931,0.1649041,62792.0,62791.0,0.003638]
[1728824088802,0.1649041,62792.0,62791.0,0.002638]
[1728824089244,0.1659041,62792.0,62791.0,0.002638]
[1728824090103,0.1669041,62792.0,62791.0,0.002638]
[1728824094765,0.2714041,62792.0,62791.0,0.002638]
[1728824095618,0.2704041,62792.0,62791.0,0.002638]
[1728824095857,0.2694041,62792.0,62791.0,0.001638]
[1728824096019,0.2894041,62792.0,62791.0,0.003638]
[1728824096197,0.2794041,62792.0,62791.0,0.002638]
[1728824096846,0.2894041,62792.0,62791.0,0.003638]
[1728824097609,0.3371208,62792.0,62791.0,0.003638]
[1728824098023,0.2894041,62792.0,62791.0,0.003638]
[1728824098258,0.33715914,62792.0,62791.0,0.003638]
[1728824098467,0.32715914,62792.0,62791.0,0.002638]
[1728824098873,0.33715914,62792.0,62791.0,0.003638]
[1728824100782,0.33716353,62792.0,62791.0,0.003638]
[1728824101042,0.2894041,62792.0,62791.0,0.003638]
[1728824106486,0.36105245,62792.0,62791.0,0.003638]
[1728824107863,0.60077646,62792.0,62791.0,0.003638]
[1728824108083,0.70736895,62792.0,62791.0,0.003638]
[1728824108299,0.70732559,62792.0,62791.0,0.003638]
[1728824108963,0.70730007,62792.0,62791.0,0.003638]
[1728824109173,0.53112811,62792.0,62791.0,0.003638]
[1728824111385,0.6027665,62792.0,62791.0,0.003638]
[1728824112286,0.6007665,62792.0,62791.0,0.003638]
[1728824113571,0.60075688,62792.0,62791.0,0.003638]
[1728824113821,0.60275688,62792.0,62791.0,0.003638]
[1728824114492,0.53112811,62792.0,62791.0,0.003638]
[1728824114730,0.60275688,62792.0,62791.0,0.003638]
[1728824115234,0.53112811,62792.0,62791.0,0.003638]
[1728824115466,0.60275688,62792.0,62791.0,0.003638]
[1728824118393,0.60275011,62792.0,62791.0,0.003638]
[1728824122469,0.53112811,62792.0,62791.0,0.003638]
[1728824122924,0.60077022,62792.0,62791.0,0.003638]
[1728824123184,0.60076948,62792.0,62791.0,0.003638]
[1728824123669,0.52912811,62792.0,62791.0,0.003638]
[1728824124124,0.60077742,62792.0,62791.0,0.003638]
[1728824124341,0.52912811,62792.0,62791.0,0.003638]
[1728824124574,0.80097015,62792.0,62791.0,0.003638]
[1728824126573,0.70544833,62792.0,62791.0,0.003638]
[1728824127783,0.82485061,62792.0,62791.0,0.003638]
[1728824128486,0.82495895,62792.0,62791.0,0.003638]
[1728824129218,0.70547369,62792.0,62791.0,0.003638]